bitfinex/quotes_ETHUSD_20241030
["timestamp","ask_amount","ask_price","bid_price","bid_amount"]
[1730304391060,3.71736,2690.1,2689.8,2.78410327]
[1730304391259,3.71719,2690.2,2689.8,2.78410327]
[1730304391438,3.71701,2690.4,2689.8,2.78410327]
[1730304391439,3.71714,2690.3,2689.8,6.50177327]
[1730304391638,1.6666,2690.7,2689.8,2.78410327]
[1730304391867,3.71712,2690.3,2689.8,5.24822]
[1730304392243,3.71712,2690.3,2689.8,1.5306]
[1730304392732,3.71686,2690.5,2689.8,5.24824]
[1730304392931,3.71706,2690.3,2689.8,5.24824]
[1730304393175,3.7172,2690.2,2689.8,2.78407327]
[1730304393672,3.7172,2690.2,2689.8,6.50179327]
[1730304393830,3.71708,2690.3,2689.8,6.50179327]
[1730304394036,3.71708,2690.3,2689.9,3.71758]
[1730304394262,3.71708,2690.3,2689.9,5.0963806]
[1730304394852,3.71699,2690.4,2690.0,3.71745]
[1730304395159,3.71707,2690.3,2689.9,5.0963806]
[1730304395551,3.71676,2690.6,2689.9,5.0963806]
[1730304395762,3.71692,2690.4,2690.0,3.71744]
[1730304396781,3.71723,2690.2,2689.9,1.3788006]
[1730304397086,3.71723,2690.2,2689.8,5.24823]
[1730304397944,3.71723,2690.2,2689.8,1.5306]
[1730304398150,3.71725,2690.2,2689.8,1.5306]
[1730304399289,3.71739,2690.1,2689.8,1.5306]
[1730304400166,3.71788,2689.7,2689.6,1.5742]
[1730304400349,1.549,2689.8,2689.1,1.5742]
[1730304400552,3.71854,2689.3,2688.9,1.5742]
[1730304400752,3.71872,2689.1,2688.9,1.5742]
[1730304400989,3.71885,2689.0,2688.6,1.5286]
[1730304401205,3.71872,2689.1,2688.6,1.5286]
[1730304401490,3.71885,2689.0,2688.6,5.24795]
[1730304401651,3.0,2689.2,2688.6,5.24795]
[1730304401857,6.71864,2689.2,2688.7,3.71922]
[1730304402192,3.71878,2689.1,2688.6,5.24795]
[1730304402358,3.71895,2689.0,2688.6,1.5286]
[1730304402760,7.43791,2689.0,2688.6,1.5286]
[1730304403092,3.71895,2689.0,2688.6,1.5286]
[1730304403295,6.71863,2689.2,2688.7,3.71926]
[1730304404182,6.71863,2689.2,2688.7,3.71916]
[1730304404396,3.71839,2689.4,2688.8,0.06026814]
[1730304404397,3.71899,2688.9,2688.8,0.06026814]
[1730304404593,3.71899,2688.9,2688.6,1.5286]
[1730304404764,3.71899,2688.9,2688.8,0.06026814]
[1730304405101,3.71899,2688.9,2688.6,1.5286]
[1730304405303,3.71899,2688.9,2688.8,0.06026814]
[1730304405510,3.7188,2689.1,2688.7,0.06032659]
[1730304405667,3.7188,2689.1,2688.8,0.06026814]
[1730304405868,3.71889,2689.0,2688.8,0.06026814]
[1730304406067,3.71889,2689.0,2688.6,1.5286]
[1730304406588,3.71889,2689.0,2688.7,0.06032659]
[1730304406979,1.5404,2689.1,2688.7,0.06032659]
[1730304407201,3.71913,2688.8,2688.7,0.06032659]
[1730304407409,3.71913,2688.8,2688.1,1.5395]
[1730304407410,3.71955,2688.5,2688.1,1.5395]
[1730304407704,3.7198,2688.4,2688.1,1.5395]
[1730304407890,3.72004,2688.2,2687.8,1.5395]
[1730304408102,1.5404,2688.6,2687.9,3.7203]
[1730304408103,3.71969,2688.4,2687.9,3.7203]
[1730304409070,3.71961,2688.5,2687.8,5.25994]
[1730304409402,3.71977,2688.4,2687.9,4.60319727]
[1730304409600,3.71954,2688.5,2687.9,0.88285727]
[1730304409807,3.71992,2688.3,2687.9,0.88285727]
[1730304410305,3.71991,2688.3,2687.9,0.88285727]
[1730304410979,7.43983,2688.3,2687.9,0.88285727]
[1730304411500,7.43981,2688.3,2687.9,0.88285727]
[1730304411670,3.7199,2688.3,2687.9,0.88285727]
[1730304412975,3.7199,2688.3,2687.8,1.5395]
[1730304413181,3.72003,2688.2,2687.8,1.5395]
[1730304413576,3.7199,2688.3,2687.8,1.5395]
[1730304413779,3.72004,2688.2,2687.8,1.5395]
[1730304414319,3.0,2688.4,2687.8,5.25999]
[1730304414524,3.0,2688.4,2688.0,3.72016]
[1730304415197,8.25982,2688.6,2688.1,3.72008]
[1730304415393,4.5404,2688.6,2688.1,3.72008]
[1730304415596,8.25981,2688.6,2688.1,3.72008]
[1730304415920,8.25981,2688.6,2688.1,3.72001]
[1730304416097,3.71961,2688.5,2687.9,7.966509]
[1730304416291,3.71965,2688.5,2687.8,1.5395]
[1730304416509,3.71965,2688.5,2687.5,5.36577]
[1730304416510,3.72036,2688.0,2687.5,5.36577]
[1730304417491,3.72011,2688.1,2687.7,3.72065]
[1730304417692,3.71988,2688.3,2687.8,3.72048]
[1730304418513,3.71997,2688.2,2687.7,3.72057]
[1730304418916,3.71997,2688.2,2687.8,3.72049]
[1730304419309,3.0,2688.3,2687.9,3.72034]
[1730304419621,3.0,2688.3,2687.9,5.27656184]
[1730304419993,3.0,2688.3,2688.0,3.72023]
[1730304420210,3.0,2688.3,2688.0,0.0518598]
[1730304420543,6.71983,2688.3,2688.0,0.0518598]
[1730304420721,3.72006,2688.2,2688.0,0.0518598]
[1730304421687,7.763791,2688.3,2688.0,0.0518598]
[1730304421886,3.72007,2688.2,2688.0,0.0518598]
[1730304422082,7.763791,2688.3,2688.0,0.0518598]
[1730304422601,11.483741,2688.3,2688.0,0.0518598]
[1730304422897,3.72009,2688.1,2688.0,0.0518598]
[1730304423300,3.72009,2688.1,2687.7,1.5702]
[1730304423509,3.72009,2688.1,2688.0,0.05019998]
[1730304423687,7.44058,2688.0,2687.7,1.5702]
[1730304423894,3.72024,2688.0,2687.5,5.29102]
[1730304424087,3.72024,2688.0,2687.5,1.5702]
[1730304424288,3.72053,2687.8,2687.3,3.72119]
[1730304424622,3.72053,2687.8,2687.4,3.72099]
[1730304425129,3.72039,2687.9,2687.4,3.72099]
[1730304425900,3.72039,2687.9,2687.5,3.72091]
[1730304426241,1.01348641,2688.0,2687.5,7.4417]
[1730304426391,1.01348641,2688.0,2687.5,3.72079]
[1730304426592,4.73379641,2688.0,2687.5,3.7209]
[1730304427747,3.0,2688.1,2687.6,1.6342]
[1730304427950,3.71981,2688.4,2687.9,3.72031]
[1730304427951,3.71968,2688.4,2687.9,3.72031]
[1730304428112,3.0,2688.3,2687.9,3.72031]
[1730304428313,1.6641,2688.5,2688.1,3.72009]
[1730304428514,4.6641,2688.5,2688.1,3.72009]
[1730304428727,8.38364,2688.5,2688.1,3.72009]
[1730304428927,9.593954,2688.5,2688.1,3.72009]
[1730304429129,3.0,2688.6,2688.1,3.72009]
[1730304429462,6.71941,2688.6,2688.1,3.72]
[1730304430364,3.0,2688.8,2688.1,0.0743961]
[1730304430514,3.0,2688.8,2688.4,3.71959]
[1730304430957,3.0,2688.6,2688.3,3.71982]
[1730304431160,3.0,2688.6,2688.2,1.5653]
[1730304431453,3.72035,2688.0,2687.4,5.37226]
[1730304431625,3.72061,2687.8,2687.4,5.37223]
[1730304431827,3.72061,2687.8,2687.4,5.37226]
[1730304432019,3.72061,2687.8,2687.4,1.6512]
[1730304432213,1.5243,2688.1,2687.0,3.72151]
[1730304432423,3.72088,2687.6,2687.1,5.37266]
[1730304432650,3.72094,2687.5,2687.1,5.37266]
[1730304433355,3.72094,2687.5,2687.1,1.6512]
[1730304433658,6.72081,2687.6,2687.2,3.72134]
[1730304434420,6.72081,2687.6,2687.3,0.04905762]
[1730304434627,6.72081,2687.6,2687.1,5.37267]
[1730304434826,10.44171,2687.6,2687.2,0.04911613]
[1730304435044,3.721,2687.5,2687.2,0.04911613]
[1730304435248,3.7212,2687.3,2687.2,0.04911613]
[1730304435463,3.72168,2687.0,2686.5,5.23494]
[1730304435761,3.72182,2686.9,2686.6,0.0478542]
[1730304435918,6.72145,2687.2,2686.6,0.0478542]
[1730304435919,3.72164,2687.0,2686.6,0.0478542]
[1730304436328,3.72164,2687.0,2686.6,3.7700242]
[1730304436537,6.72145,2687.2,2686.6,3.7699442]
[1730304436754,3.72162,2687.0,2686.6,3.7699442]
[1730304437322,3.72162,2687.0,2686.6,0.0478542]
[1730304437758,7.44337,2687.0,2686.6,0.0478542]
[1730304437932,3.72179,2686.9,2686.6,0.0478542]
[1730304438254,3.0,2687.0,2686.6,0.0478542]
[1730304438657,3.72164,2687.0,2686.6,0.0478542]
[1730304438959,3.72188,2686.9,2686.6,0.0478542]
[1730304439136,3.72197,2686.8,2686.6,0.0478542]
[1730304439662,3.72197,2686.8,2686.7,0.04473409]
[1730304439819,3.72197,2686.8,2686.4,3.72244]
[1730304440024,3.72197,2686.8,2686.5,0.04485117]
[1730304440762,5.24902,2687.0,2686.5,0.04485117]
[1730304440931,6.72156,2687.1,2686.6,3.72215]
[1730304441339,3.72162,2687.0,2686.7,0.04473409]
[1730304441729,3.72162,2687.0,2686.5,3.7223]
[1730304441959,3.72176,2686.9,2686.8,0.04467555]
[1730304442265,3.72162,2687.0,2686.8,0.04467555]
[1730304442437,3.72162,2687.0,2686.5,3.72223]
[1730304442963,3.72162,2687.0,2686.6,0.04479263]
[1730304444764,3.72205,2686.7,2686.3,3.72259]
[1730304445267,3.72239,2686.5,2686.0,3.7229]
[1730304446327,3.72239,2686.5,2686.0,7.44582]
[1730304446638,7.44452,2686.6,2686.1,3.72285]
[1730304446838,3.72232,2686.5,2686.1,3.72285]
[1730304447761,3.72232,2686.5,2686.0,3.72299]
[1730304448327,3.72246,2686.4,2685.9,5.34305]
[1730304448959,3.72247,2686.4,2685.9,5.34305]
[1730304449267,0.744437,2686.5,2686.1,3.72286]
[1730304449769,8.32967,2686.8,2686.3,3.72252]
[1730304449952,3.0,2686.6,2686.2,3.76540602]
[1730304450142,3.0,2686.6,2686.4,0.04138067]
[1730304450348,3.0,2686.6,2686.3,3.76401922]
[1730304450669,3.0,2686.6,2686.4,0.04010556]
[1730304451750,4.6077,2686.8,2686.4,0.04010556]
[1730304451966,5.170647,2686.8,2686.4,0.04010556]
[1730304452265,3.0,2686.6,2686.4,0.04010556]
[1730304452462,3.72239,2686.5,2686.0,3.72291]
[1730304452666,0.372239,2686.4,2686.1,0.03789076]
[1730304452885,3.72248,2686.4,2686.1,0.03789076]
[1730304453234,3.72233,2686.5,2686.0,3.72299]
[1730304453427,3.0,2686.6,2686.2,3.7227]
[1730304453632,3.72219,2686.6,2686.3,0.03777364]
[1730304453872,3.72219,2686.6,2686.2,3.7227]
[1730304454037,3.72219,2686.6,2686.3,0.03777364]
[1730304454238,3.72268,2686.3,2685.9,1.62]
[1730304454468,3.72233,2686.5,2686.0,0.03794932]
[1730304455184,3.72233,2686.5,2686.0,3.76088932]
[1730304455669,3.72233,2686.5,2686.1,3.72286]
[1730304455870,3.72233,2686.5,2686.2,0.03784466]
[1730304456870,3.72233,2686.5,2686.0,3.72298]
[1730304457164,3.72233,2686.5,2686.1,0.03790322]
[1730304457370,5.24980054,2686.5,2686.1,0.03790322]
[1730304457761,5.24980054,2686.5,2686.1,3.76076322]
[1730304459271,3.72233,2686.5,2686.1,3.76076322]
[1730304461755,6.72203,2686.7,2686.1,3.76076322]
[1730304461944,1.5408,2687.1,2686.6,3.72214]
[1730304462147,0.01,2687.5,2686.7,5.31337]
[1730304462148,3.72142,2687.2,2686.7,5.31337]
[1730304462365,3.72142,2687.2,2686.7,5.35100558]
[1730304462670,3.72162,2687.0,2686.7,1.62903558]
[1730304462967,3.72189,2686.8,2686.7,0.03763558]
[1730304463465,3.72209,2686.7,2686.2,7.4453]
[1730304463963,3.0,2686.6,2686.2,7.44529]
[1730304464670,3.0,2686.6,2686.3,0.03783594]
[1730304464975,3.72189,2686.8,2686.3,0.03783594]
[1730304464976,3.0,2686.8,2686.6,3.72216]
[1730304465139,3.72142,2687.2,2686.8,3.72183]
[1730304465339,3.72142,2687.2,2686.7,5.31041176]
[1730304465679,3.72162,2687.0,2686.8,0.03755391]
[1730304465841,3.72176,2686.9,2686.4,1.5508]
[1730304466041,3.72218,2686.6,2686.5,0.03772596]
[1730304466262,4.466594,2686.6,2686.5,0.03772596]
[1730304466465,3.72196,2686.8,2686.4,3.72238]
[1730304466661,3.72196,2686.8,2686.5,0.03772596]
[1730304466847,3.72217,2686.6,2686.2,1.5508]
[1730304467034,3.72217,2686.6,2686.3,0.03784306]
[1730304467238,3.72217,2686.6,2686.2,1.5508]
[1730304467438,3.72217,2686.6,2686.3,0.03784306]
[1730304467652,3.72217,2686.6,2686.2,5.27346]
[1730304467867,3.72217,2686.6,2686.3,0.03784306]
[1730304468190,3.72217,2686.6,2686.2,1.5508]
[1730304468357,7.44447,2686.6,2686.4,0.03775784]
[1730304468685,3.72217,2686.6,2686.5,0.0376993]
[1730304468890,3.7221,2686.7,2686.3,3.72255]
[1730304469094,6.7221,2686.7,2686.4,0.03775784]
[1730304469457,6.72205,2686.7,2686.3,3.72258]
[1730304469673,3.0,2686.8,2686.4,3.76014784]
[1730304469866,3.0,2686.8,2686.4,0.03775784]
[1730304470189,6.72198,2686.8,2686.4,0.03775784]
[1730304471210,3.72205,2686.7,2686.4,0.03775784]
[1730304471577,3.72205,2686.7,2686.2,5.27343]
[1730304471790,3.72205,2686.7,2686.5,0.03766193]
[1730304472006,3.72205,2686.7,2686.3,3.72257]
[1730304472315,6.72205,2686.7,2686.3,3.72257]
[1730304472510,3.72205,2686.7,2686.4,0.03772048]
[1730304473209,3.0,2686.8,2686.4,0.03772048]
[1730304473510,3.0,2686.8,2686.4,3.76017048]
[1730304474006,6.72195,2686.8,2686.4,3.76017048]
[1730304474217,3.72158,2687.1,2686.7,1.6548]
[1730304474512,5.34638,2687.3,2686.8,0.03748097]
[1730304474685,3.72143,2687.2,2686.7,1.6548]
[1730304474887,3.72183,2686.9,2686.8,0.03747919]
[1730304475077,3.72183,2686.9,2686.5,1.6548]
[1730304475277,3.72183,2686.9,2686.6,0.03759627]
[1730304475823,3.7217,2687.0,2686.6,0.03759627]
[1730304476017,3.72185,2686.9,2686.6,0.03759627]
[1730304476907,3.72192,2686.8,2686.6,0.03759627]
[1730304477632,3.72203,2686.7,2686.6,0.03759627]
[1730304478130,6.72203,2686.7,2686.6,0.03759627]
[1730304478327,3.72249,2686.4,2685.8,5.3477]
[1730304478507,3.72249,2686.4,2685.9,3.72314]
[1730304478692,3.72249,2686.4,2685.9,3.76112836]
[1730304479306,7.44505,2686.4,2685.9,3.76112836]
[1730304479524,3.72249,2686.4,2686.0,3.723]
[1730304479825,3.72259,2686.3,2686.0,0.03792979]
[1730304480437,7.44504,2686.4,2686.0,0.03792979]
[1730304480607,3.72248,2686.4,2686.0,0.03792979]
[1730304480932,3.0,2686.6,2686.0,0.03792979]
[1730304480933,1.5541,2687.0,2686.3,3.72254]
[1730304481248,3.72191,2686.8,2686.3,3.72254]
[1730304481397,3.72191,2686.8,2686.4,0.03769556]
[1730304481742,3.72191,2686.8,2686.4,3.76007556]
[1730304482335,3.72177,2686.9,2686.5,1.6581]
[1730304482502,3.72151,2687.1,2686.5,5.41807151]
[1730304482701,3.0,2687.0,2686.6,3.72214]
[1730304482900,3.72124,2687.3,2686.7,5.34103]
[1730304483136,3.72085,2687.6,2687.1,3.72141]
[1730304483632,3.72097,2687.5,2687.2,0.0372718]
[1730304484534,3.7215,2687.1,2686.8,1.619]
[1730304484736,0.37215,2687.0,2686.6,1.619]
[1730304484935,3.72189,2686.9,2686.6,1.619]
[1730304485114,3.72219,2686.6,2686.1,9.02342]
[1730304485446,3.72198,2686.8,2686.3,3.72258]
[1730304485737,3.72198,2686.8,2686.4,3.72245]
[1730304486644,3.72198,2686.8,2686.3,3.72257]
[1730304486958,3.72198,2686.8,2686.3,3.72259]
[1730304487521,3.72198,2686.8,2686.4,3.72241]
[1730304487946,3.72198,2686.8,2686.3,3.72259]
[1730304488443,3.72198,2686.8,2686.3,7.44511]
[1730304489614,3.72198,2686.8,2686.3,3.72252]
[1730304489811,3.72204,2686.7,2686.3,3.72252]
[1730304490020,3.72174,2687.0,2686.3,7.44503]
[1730304490223,3.7219,2686.8,2686.3,3.72251]
[1730304490605,3.7219,2686.8,2686.3,7.44501]
[1730304491067,3.7219,2686.8,2686.3,3.7225]
[1730304491346,11.82480274,2687.2,2686.5,3.72231]
[1730304491347,5.25625,2687.2,2686.5,3.72231]
[1730304491572,5.25625,2687.2,2686.7,3.72202]
[1730304491884,5.25625,2687.2,2686.7,3.72197]
[1730304492041,5.25625,2687.2,2686.7,3.72196]
[1730304492388,5.25625,2687.2,2686.7,7.44392]
[1730304492572,5.25625,2687.2,2686.7,3.72196]
[1730304492963,5.25625,2687.2,2686.7,7.44392]
[1730304493291,3.72089,2687.6,2687.0,3.72162]
[1730304493461,3.72094,2687.5,2687.0,3.72153]
[1730304493980,3.72132,2687.3,2686.7,6.01630576]
[1730304494288,3.72164,2687.0,2686.7,1.5425]
[1730304494464,3.72201,2686.8,2686.3,5.26508]
[1730304494644,1.6295,2687.1,2686.3,2.441272]
[1730304494871,3.0,2687.0,2686.3,1.5425]
[1730304495078,3.72178,2686.9,2686.4,3.72236]
[1730304495771,3.7219,2686.8,2686.3,5.26507]
[1730304496173,3.7219,2686.8,2685.8,3.72324]
[1730304496174,3.72295,2686.1,2685.6,3.72347]
[1730304496356,3.72268,2686.3,2685.7,7.44676]
[1730304496558,0.01,2686.9,2685.0,1.5425]
[1730304496559,4.6295,2686.2,2685.0,1.5425]
[1730304496757,3.72316,2685.9,2685.2,3.72408]
[1730304496985,3.72316,2685.9,2685.3,4.096278]
[1730304497286,3.72316,2685.9,2685.3,0.372408]
[1730304497584,3.72324,2685.9,2685.2,3.72402]
[1730304497790,3.72339,2685.8,2685.2,3.72402]
[1730304497974,3.72348,2685.7,2685.2,3.72402]
[1730304498145,3.72348,2685.7,2685.0,1.5425]
[1730304498146,3.56863274,2686.1,2685.0,1.5425]
[1730304498379,3.72364,2685.6,2685.0,5.26686]
[1730304498617,3.72364,2685.6,2685.1,0.89913]
[1730304498823,3.72372,2685.5,2685.1,0.89913]
[1730304499108,3.72384,2685.4,2685.0,1.5425]
[1730304499318,7.44733,2685.6,2685.0,5.26679]
[1730304499501,3.7237,2685.5,2685.0,5.26679]
[1730304499820,3.72364,2685.6,2685.1,3.72425]
[1730304499821,3.72356,2685.6,2685.1,3.72425]
[1730304500032,6.72359,2685.6,2685.0,2.44721816]
[1730304500310,6.72359,2685.6,2685.0,6.17156816]
[1730304500478,6.72359,2685.6,2685.1,0.9970489]
[1730304500875,10.44726,2685.6,2685.1,0.9970489]
[1730304501073,10.44723,2685.6,2685.1,0.9970489]
[1730304501275,3.72371,2685.5,2685.1,0.9970489]
[1730304501714,3.72384,2685.4,2685.1,0.9970489]
[1730304501917,3.72404,2685.3,2685.0,1.5425]
[1730304502211,3.72404,2685.3,2684.7,5.28059]
[1730304502212,3.72415,2685.2,2684.7,5.28059]
[1730304502414,3.7238,2685.5,2684.7,1.5559]
[1730304502624,3.72399,2685.3,2684.8,3.78053156]
[1730304502913,3.72399,2685.3,2684.8,4.31417472]
[1730304503115,7.44763,2685.5,2684.8,0.58951472]
[1730304503314,3.7238,2685.5,2684.9,4.38594841]
[1730304503616,6.72358,2685.6,2685.0,5.22913]
[1730304504819,6.72358,2685.6,2685.1,3.72423]
[1730304505114,3.72349,2685.7,2685.2,3.72404]
[1730304505319,3.72349,2685.7,2685.2,4.6112351]
[1730304505480,3.72317,2685.9,2685.2,0.8871951]
[1730304505687,3.72336,2685.8,2685.4,1.6213]
[1730304505892,3.72344,2685.7,2685.4,1.6213]
[1730304506130,3.72317,2685.9,2685.4,1.6213]
[1730304506399,3.0,2685.9,2685.5,3.72368]
[1730304506702,9.01254,2686.2,2685.4,1.6213]
[1730304506912,3.72281,2686.2,2685.7,3.72335]
[1730304507315,3.72294,2686.1,2685.6,3.72354]
[1730304507629,3.72294,2686.1,2685.6,4.63783911]
[1730304507793,3.72294,2686.1,2685.7,3.72342]
[1730304508124,3.72294,2686.1,2685.6,0.91429911]
[1730304508327,3.72294,2686.1,2685.6,4.63785911]
[1730304509490,3.72294,2686.1,2685.7,3.76554427]
[1730304509696,6.72274,2686.2,2685.7,3.76554427]
[1730304509928,6.72274,2686.2,2685.7,4.60588461]
[1730304510134,7.44529,2686.3,2685.8,3.72326]
[1730304510439,3.72261,2686.3,2685.9,0.04192988]
[1730304510592,3.72276,2686.2,2685.9,0.04192988]
[1730304511241,3.72293,2686.1,2685.5,3.72368]
[1730304511442,3.72309,2686.0,2685.5,4.62251368]
[1730304511935,3.72293,2686.1,2685.7,3.72341]
[1730304512594,3.72293,2686.1,2685.6,3.72354]
[1730304512836,3.72293,2686.1,2685.6,4.34790637]
[1730304514420,1.5731,2685.7,2685.1,1.5114]
[1730304514622,5.29659,2685.7,2685.2,3.72408]
[1730304514821,3.72356,2685.6,2685.1,5.23559]
[1730304515000,7.4472,2685.6,2685.1,5.23559]
[1730304515195,3.72356,2685.6,2685.1,5.23559]
[1730304515397,3.72379,2685.5,2685.1,1.5114]
[1730304515608,3.72384,2685.4,2685.1,1.5114]
[1730304516835,3.72338,2685.8,2685.4,3.7238]
[1730304517125,5.23689,2686.0,2685.4,3.7238]
[1730304517126,1.5138,2686.2,2685.4,1.6213]
[1730304517297,3.72259,2686.3,2685.9,3.72306]
[1730304517510,3.72259,2686.3,2685.7,3.72332]
[1730304517741,5.23634,2686.4,2685.8,3.72326]
[1730304517906,5.23634,2686.4,2685.9,5.34441]
[1730304518111,8.95888,2686.4,2685.9,5.34441]
[1730304518407,3.72281,2686.2,2685.6,5.34485]
[1730304518625,0.372281,2686.1,2685.6,5.34485]
[1730304519503,3.72306,2686.0,2685.6,5.34485]
[1730304519832,3.72306,2686.0,2685.6,1.6213]
[1730304520596,3.72306,2686.0,2685.5,3.72369]
[1730304520597,1.5856,2685.9,2685.3,1.5126]
[1730304520821,3.7233,2685.8,2685.3,5.23649]
[1730304521263,3.7235,2685.7,2685.4,0.04605613]
[1730304521424,3.7237,2685.5,2685.4,0.04605613]
[1730304521833,3.72384,2685.4,2684.9,1.5746]
[1730304522040,3.72397,2685.3,2684.9,1.5746]
[1730304522841,3.72397,2685.3,2684.9,5.29913]
[1730304524358,3.72397,2685.3,2685.0,0.04651424]
[1730304525646,3.72376,2685.5,2685.0,0.04651424]
[1730304525977,7.44698,2685.7,2685.2,3.72398]
[1730304526138,3.72356,2685.6,2685.2,3.72409]
[1730304526340,3.72356,2685.6,2685.3,0.04630122]
[1730304526541,3.72343,2685.7,2685.1,3.72419]
[1730304526755,3.72366,2685.6,2685.2,0.04638113]
[1730304526941,3.7237,2685.5,2685.2,0.04638113]
[1730304527566,3.72386,2685.4,2685.2,0.04638113]
[1730304527750,5.3505,2685.4,2685.2,0.04638113]
[1730304527958,3.72397,2685.3,2684.9,3.72444]
[1730304528151,3.72424,2685.2,2684.7,5.27549]
[1730304528350,3.72397,2685.3,2684.8,3.72458]
[1730304529393,3.72419,2685.2,2684.7,5.27549]
[1730304529680,3.72419,2685.2,2684.7,3.72469]
[1730304529861,3.72419,2685.2,2684.5,3.72498]
[1730304529862,3.72444,2685.0,2684.5,5.35148]
[1730304530067,3.72427,2685.1,2684.7,3.72473]
[1730304530272,1.5893,2685.2,2684.5,3.72506]
[1730304530583,3.72436,2685.1,2684.6,3.72487]
[1730304530876,5.9393227,2685.2,2684.6,3.72487]
[1730304530877,5.31351,2685.2,2684.6,3.72487]
[1730304531078,5.31351,2685.2,2684.7,3.72475]
[1730304531079,9.03771,2685.2,2684.7,3.72475]
[1730304531447,9.03771,2685.2,2684.6,7.44975]
[1730304531448,3.72434,2685.1,2684.6,7.44975]
[1730304531642,3.72434,2685.1,2684.6,3.72487]
[1730304531843,3.72434,2685.1,2684.6,7.44974]
[1730304532252,3.72434,2685.1,2684.6,3.72487]
[1730304532860,3.72449,2685.0,2684.5,3.72495]
[1730304533388,3.72449,2685.0,2684.4,3.72509]
[1730304533586,3.72454,2684.9,2684.3,3.72536]
[1730304533793,3.72454,2684.9,2684.5,3.72506]
[1730304534083,3.72425,2685.1,2684.5,3.72506]
[1730304534449,5.31352,2685.2,2684.5,3.72506]
[1730304534650,3.72439,2685.0,2684.6,3.72492]
[1730304535177,7.44888,2685.0,2684.5,3.72508]
[1730304535488,3.72439,2685.0,2684.6,3.72494]
[1730304536783,3.72542,2684.3,2683.7,1.5206]
[1730304536985,1.6222,2684.2,2683.8,3.72594]
[1730304537286,1.6222,2684.2,2683.6,0.0403192]
[1730304537287,1.6222,2684.2,2684.0,3.72576]
[1730304537488,1.6222,2684.2,2683.9,3.72586]
[1730304537791,1.6222,2684.2,2684.0,3.72577]
[1730304538087,1.6222,2684.2,2683.9,3.72586]
[1730304538289,1.5268,2684.4,2683.9,3.72586]
[1730304538495,5.25203,2684.4,2683.9,3.72583]
[1730304539005,1.5268,2684.4,2684.0,3.72577]
[1730304539485,1.5268,2684.4,2684.1,0.05562726]
[1730304539902,1.5268,2684.4,2684.1,3.72563]
[1730304540228,1.6619,2684.8,2684.7,3.72481]
[1730304540380,1.6619,2685.2,2684.7,7.44962]
[1730304540583,1.6619,2685.2,2684.7,0.05504089]
[1730304540584,3.72449,2685.0,2684.7,0.05504089]
[1730304540817,0.372449,2684.9,2684.7,0.05504089]
[1730304541119,0.372449,2684.9,2684.8,0.05494318]
[1730304541325,3.72449,2685.0,2684.5,3.72499]
[1730304541476,3.72471,2684.8,2684.6,0.0551386]
[1730304541687,8.23431,2684.7,2684.6,0.0551386]
[1730304541909,3.72496,2684.6,2684.1,3.72554]
[1730304542111,3.72496,2684.6,2684.0,5.35947]
[1730304542319,3.72521,2684.5,2684.0,5.35947]
[1730304542621,3.72496,2684.6,2684.0,5.35947]
[1730304542781,3.72496,2684.6,2684.2,3.72548]
[1730304542981,5.040473,2684.6,2684.2,3.72548]
[1730304543423,3.72475,2684.8,2684.3,3.72535]
[1730304543595,3.0,2684.7,2684.3,3.72535]
[1730304544189,3.0,2684.7,2684.3,3.72529]
[1730304544522,4.5095,2684.9,2684.4,3.7251]
[1730304544683,3.72467,2684.8,2684.4,3.7251]
[1730304544879,3.0,2684.7,2684.4,3.7251]
[1730304545326,3.72501,2684.6,2684.0,1.6337]
[1730304545524,3.72501,2684.6,2683.6,3.7665692]
[1730304545525,1.5806,2684.4,2683.9,3.72582]
[1730304545707,1.5806,2684.4,2684.0,3.72566]
[1730304546025,6.72488,2684.7,2683.9,3.72592]
[1730304546319,8.31158,2684.7,2684.2,3.72548]
[1730304546680,4.5867,2684.7,2684.2,3.72548]
[1730304546881,3.0,2684.5,2684.2,3.72548]
[1730304547528,4.5393,2684.9,2684.4,3.72513]
[1730304547687,3.0,2684.7,2684.4,3.72513]
[1730304548420,3.0,2684.7,2684.5,0.04547047]
[1730304550310,6.72487,2684.7,2684.2,3.72544]
[1730304550629,6.72487,2684.7,2684.3,0.05018808]
[1730304550788,7.923758,2684.7,2684.3,0.05018808]
[1730304550992,6.72487,2684.7,2684.3,3.72535]
[1730304551191,6.72487,2684.7,2684.4,0.05010012]
[1730304551606,5.26384,2684.9,2684.4,3.77526012]
[1730304551607,3.0,2684.8,2684.4,3.77526012]
[1730304552326,6.7247,2684.8,2684.4,3.77526012]
[1730304552500,6.7247,2684.8,2684.4,0.05010012]
[1730304552701,3.72481,2684.7,2684.4,0.05010012]
[1730304552896,6.72468,2684.8,2684.4,0.05010012]
[1730304553097,6.72459,2684.9,2684.5,1.5103]
[1730304553310,8.28610327,2684.9,2684.5,1.5103]
[1730304553523,1.56151327,2684.9,2684.6,0.05546244]
[1730304553824,1.5974,2685.1,2684.6,0.05546244]
[1730304554041,5.32173,2685.1,2684.6,3.78029244]
[1730304554333,5.32173,2685.1,2684.7,0.06228532]
[1730304554839,3.72433,2685.1,2684.7,3.78702532]
[1730304555788,1.5142,2685.3,2684.7,0.06228532]
[1730304555995,3.7246,2684.9,2684.7,0.06228532]
[1730304556305,3.7246,2684.9,2684.8,0.05525217]
[1730304556505,3.7246,2684.9,2684.5,3.72506]
[1730304556712,3.7246,2684.9,2684.6,0.05544758]
[1730304557131,3.7246,2684.9,2684.5,3.72502]
[1730304557336,3.7246,2684.9,2684.6,0.05544758]
[1730304557924,3.72445,2685.0,2684.6,0.05544758]